bitfinex/quotes_ETHUSD_20240926
["timestamp","ask_amount","ask_price","bid_price","bid_amount"]
[1727358649720,14.8,2620.0,2619.6,3.8273]
[1727358649882,14.8,2620.0,2619.7,0.07640155]
[1727358650077,14.8,2620.0,2619.8,3.817]
[1727358650279,14.8,2620.0,2619.7,4.33069171]
[1727358650474,14.8,2620.0,2619.9,0.07650918]
[1727358650678,14.8,2620.0,2619.6,0.01]
[1727358650679,18.61682,2620.0,2619.8,0.07660708]
[1727358650921,18.61682,2620.0,2619.9,0.076291]
[1727358651309,18.61682,2620.0,2619.6,0.01]
[1727358651520,18.61682,2620.0,2619.9,0.07629575]
[1727358651720,3.81707,2619.9,2619.6,0.01]
[1727358651920,3.81721,2619.8,2619.6,0.01]
[1727358652842,3.81707,2619.9,2619.6,0.01]
[1727358652995,3.8171,2619.8,2619.6,0.01]
[1727358654141,3.81723,2619.7,2619.6,0.01]
[1727358654301,3.8171,2619.8,2619.6,0.01]
[1727358654641,3.91706817,2619.7,2619.6,0.01]
[1727358654968,7.6388634,2619.7,2619.6,0.01]
[1727358656121,6.07051682,2619.8,2619.6,0.01]
[1727358656437,14.8,2620.0,2619.6,3.82723]
[1727358656749,14.8,2620.0,2619.7,4.27993]
[1727358657339,14.8,2620.0,2619.7,0.4628]
[1727358657516,14.8,2620.0,2619.7,4.2799]
[1727358657837,14.8,2620.0,2619.7,0.4628]
[1727358658240,14.8,2620.0,2619.8,3.81701]
[1727358658758,14.8,2620.0,2619.7,4.28003]
[1727358659344,14.8,2620.0,2619.7,5.12995828]
[1727358659656,14.8,2620.0,2619.7,1.31272828]
[1727358659854,14.8,2620.0,2619.7,5.12994828]
[1727358660359,14.8,2620.0,2619.8,3.81707]
[1727358660567,14.8,2620.0,2619.9,3.81693]
[1727358660733,14.8,2620.0,2619.9,4.71160283]
[1727358660937,14.8,2620.0,2619.9,0.96859503]
[1727358661256,14.8,2620.0,2619.9,0.0739222]
[1727358661850,14.8,2620.0,2619.9,4.3536522]
[1727358662822,14.8,2620.0,2619.9,4.42998284]
[1727358663026,14.8,2620.0,2619.9,4.9036522]
[1727358663430,14.8,2620.0,2619.9,11.7252856]
[1727358663654,14.8,2620.0,2619.9,13.27951416]
[1727358664327,14.8,2620.0,2619.9,9.45788076]
[1727358664748,14.8,2620.0,2619.9,13.27951416]
[1727358669065,14.8,2620.0,2619.9,9.45788076]
[1727358670063,14.8,2620.0,2619.9,8.90788076]
[1727358670565,14.8,2620.0,2619.9,5.44508076]
[1727358670773,14.8,2620.0,2619.9,3.8908522]
[1727358672072,14.8,2620.0,2619.9,4.9036522]
[1727358673251,14.8,2620.0,2619.9,0.0739222]
[1727358674048,14.8,2620.0,2619.7,3.81714]
[1727358674257,14.8,2620.0,2619.6,0.01]
[1727358674258,14.8,2620.0,2619.9,0.07078002]
[1727358674465,17.122817,2620.0,2619.8,0.0708874]
[1727358674642,14.8,2620.0,2619.9,0.07078002]
[1727358675038,14.8,2620.0,2619.6,7.64472]
[1727358675243,3.81696,2619.9,2619.6,0.01]
[1727358675871,3.81696,2619.9,2619.7,0.0709948]
[1727358676056,4.59318,2619.8,2619.7,0.0709948]
[1727358676264,3.2912299,2619.8,2619.7,0.0709948]
[1727358676776,7.1083099,2619.8,2619.7,0.0709948]
[1727358678674,3.2912299,2619.8,2619.7,0.0709948]
[1727358678843,7.1083099,2619.8,2619.7,0.0709948]
[1727358679761,7.20374615,2619.8,2619.7,0.0709948]
[1727358681070,3.81723,2619.7,2619.6,0.01]
[1727358681280,4.53760462,2619.7,2619.6,0.01]
[1727358681481,0.72037462,2619.7,2619.6,0.01]
[1727358681978,4.53760462,2619.7,2619.6,0.01]
[1727358682354,5.39824998,2619.7,2619.6,0.01]
[1727358682756,5.30280462,2619.7,2619.6,0.01]
[1727358684379,8.30280462,2619.7,2619.6,0.01]
[1727358686643,8.25426259,2619.7,2619.6,0.01]
[1727358688553,7.58243,2619.7,2619.6,0.01]
[1727358689687,3.81709,2619.8,2619.6,0.01]
[1727358689899,18.61679,2620.0,2619.6,0.01]
[1727358690103,18.61679,2620.0,2619.7,0.06785099]
[1727358690253,14.8,2620.0,2619.7,0.06785099]
[1727358690584,14.8,2620.0,2619.6,0.01]
[1727358690774,3.81699,2619.9,2619.6,0.01]
[1727358691085,3.81699,2619.9,2619.7,0.06785099]
[1727358691490,18.61686,2620.0,2619.7,0.06785099]
[1727358691655,3.81697,2619.9,2619.7,0.06785099]
[1727358691850,14.8,2620.0,2619.7,0.06785099]
[1727358692284,14.8,2620.0,2619.7,0.45786509]
[1727358692793,14.8,2620.0,2619.9,0.4628]
[1727358692948,14.8,2620.0,2619.9,4.27973]
[1727358693156,14.8,2620.0,2619.9,4.34738514]
[1727358693855,14.8,2620.0,2619.9,0.53045514]
[1727358694084,18.61679,2620.0,2619.9,0.06765514]
[1727358694390,14.8,2620.0,2619.6,0.4728]
[1727358694591,14.8,2620.0,2619.7,0.06769006]
[1727358694592,7.63406,2619.9,2619.7,0.06769006]
[1727358694764,3.81701,2619.9,2619.7,0.06769006]
[1727358695168,14.8,2620.0,2619.7,0.06769006]
[1727358695366,3.81693,2619.9,2619.7,0.06769006]
[1727358695583,3.91235421,2619.9,2619.7,0.06769006]
[1727358695751,7.72936421,2619.9,2619.7,0.06769006]
[1727358695952,7.63394,2619.9,2619.7,0.06769006]
[1727358696155,3.91236007,2619.9,2619.7,0.06769006]
[1727358696372,3.81708,2619.8,2619.7,0.06769006]
[1727358696773,3.91236008,2619.9,2619.7,0.06769006]
[1727358697012,7.72938008,2619.9,2619.7,0.06769006]
[1727358697175,3.91236008,2619.9,2619.7,0.06769006]
[1727358697573,3.81708,2619.8,2619.7,0.06769006]
[1727358698006,6.07002401,2619.8,2619.7,0.06769006]
[1727358698208,6.16546242,2619.8,2619.7,0.06769006]
[1727358698685,6.07002401,2619.8,2619.7,0.06769006]
[1727358699219,3.81708,2619.8,2619.7,0.06769006]
[1727358699378,3.81693,2619.9,2619.7,0.06769006]
[1727358699973,14.8,2620.0,2619.7,0.06769006]
[1727358701186,3.81708,2619.8,2619.7,0.06769006]
[1727358703614,7.66762084,2619.8,2619.7,0.06769006]
[1727358703809,7.66762084,2619.8,2619.6,0.01]
[1727358703810,10.29608592,2619.8,2619.6,0.01]
[1727358704022,3.91267571,2619.7,2619.6,0.01]
[1727358704319,3.81723,2619.7,2619.6,0.01]
[1727358704680,3.81723,2619.7,2619.6,0.07776903]
[1727358705003,3.81723,2619.7,2619.6,0.01]
[1727358705408,3.81723,2619.7,2619.6,0.07776903]
[1727358705913,3.81701,2619.9,2619.6,0.07776903]
[1727358706129,14.8,2620.0,2619.7,0.4628]
[1727358706281,14.8,2620.0,2619.7,1.2808419]
[1727358706282,18.61679,2620.0,2619.7,1.2808419]
[1727358706489,18.61679,2620.0,2619.8,0.06763471]
[1727358706930,18.61679,2620.0,2619.7,1.2808419]
[1727358707077,18.61679,2620.0,2619.9,0.06752732]
[1727358707288,18.61679,2620.0,2619.8,0.06763471]
[1727358707603,18.61679,2620.0,2619.7,1.2808419]
[1727358707604,14.8,2620.0,2619.9,0.06752732]
[1727358707790,14.8,2620.0,2619.7,1.2808419]
[1727358708132,14.8,2620.0,2619.8,0.5784409]
[1727358708425,3.81693,2619.9,2619.8,0.06763471]
[1727358708827,4.72465791,2619.9,2619.8,0.06763471]
[1727358709125,3.81723,2619.7,2619.6,0.01]
[1727358709328,5.05313017,2619.7,2619.6,0.01]
[1727358709626,5.14857262,2619.7,2619.6,0.01]
[1727358709833,5.05313017,2619.7,2619.6,0.01]
[1727358709989,5.87023017,2619.7,2619.6,0.01]
[1727358711821,4.63433,2619.7,2619.6,0.01]
[1727358712125,3.81723,2619.7,2619.6,0.01]
[1727358712725,3.8171,2619.8,2619.6,0.01]
[1727358712943,19.42875,2620.0,2619.6,0.01]
[1727358712944,18.61689,2620.0,2619.6,0.01]
[1727358713224,14.8,2620.0,2619.6,0.01]
[1727358713387,3.81716,2619.8,2619.6,0.01]
[1727358713587,3.81723,2619.7,2619.6,0.01]
[1727358714206,4.580669,2619.7,2619.6,0.01]
[1727358714417,5.333969,2619.7,2619.6,0.01]
[1727358714622,4.57053,2619.7,2619.6,0.01]
[1727358714829,3.81723,2619.7,2619.6,0.01]
[1727358715190,3.81723,2619.7,2619.6,0.07582898]
[1727358715410,3.81723,2619.7,2619.6,0.07580531]
[1727358717132,3.91267136,2619.7,2619.6,0.07580531]
[1727358717329,5.86589848,2619.7,2619.6,0.07580531]
[1727358717490,5.86589848,2619.7,2619.6,0.01]
[1727358720893,18.61685,2620.0,2619.6,0.01]
[1727358720894,15.5857,2620.0,2619.6,0.01]
[1727358721119,3.81702,2619.9,2619.6,0.01]
[1727358721329,15.5857,2620.0,2619.6,0.01]
[1727358721330,14.8,2620.0,2619.7,0.4628]
[1727358721525,14.8,2620.0,2619.7,0.52801544]
[1727358721726,14.8,2620.0,2619.8,0.43552854]
[1727358721925,14.8,2620.0,2619.8,3.81701]
[1727358722129,14.8,2620.0,2619.9,0.06500066]
[1727358722813,14.8,2620.0,2619.8,3.81694]
[1727358723025,14.8,2620.0,2619.9,3.88190699]
[1727358723227,14.8,2620.0,2619.9,4.34470699]
[1727358723434,14.8,2620.0,2619.9,5.54303503]
[1727358725542,14.8,2620.0,2619.9,1.72610503]
[1727358725701,14.8,2620.0,2619.9,0.52777699]
[1727358728009,18.61679,2620.0,2619.9,0.06497699]
[1727358728206,3.81723,2619.7,2619.6,0.01]
[1727358728614,4.60013,2619.7,2619.6,0.07529918]
[1727358729035,4.60013,2619.7,2619.6,0.01]
[1727358734573,7.60013,2619.7,2619.6,0.01]
[1727358734740,9.34839957,2619.7,2619.6,0.01]
[1727358736052,7.60013,2619.7,2619.6,0.01]
[1727358736439,3.81723,2619.7,2619.6,0.06993216]
[1727358736637,3.81723,2619.7,2619.6,0.01]
[1727358736863,3.81723,2619.7,2619.6,0.06993216]
[1727358737227,4.660732,2619.7,2619.6,0.01]
[1727358737973,3.81723,2619.7,2619.6,0.01]
[1727358738827,3.81723,2619.7,2619.6,0.06993216]
[1727358739034,3.81723,2619.7,2619.6,0.01]
[1727358739232,3.81709,2619.8,2619.6,0.01]
[1727358740732,14.8,2620.0,2619.7,0.4628]
[1727358740928,3.81698,2619.9,2619.7,0.4628]
[1727358742879,3.817,2619.9,2619.7,0.4628]
[1727358743328,3.817,2619.9,2619.8,0.05958006]
[1727358743533,3.91242911,2619.9,2619.8,0.05958006]
[1727358743728,3.91242911,2619.9,2619.6,0.01]
[1727358743729,3.81723,2619.7,2619.6,0.01]
[1727358744041,3.91267291,2619.7,2619.6,0.01]
[1727358744271,3.91267291,2619.7,2619.6,0.06810897]
[1727358744636,3.81723,2619.7,2619.6,0.06810897]
[1727358745168,5.26784853,2619.7,2619.6,0.06810897]
[1727358745478,5.26784853,2619.7,2619.6,0.01]
[1727358751085,3.81723,2619.7,2619.6,0.01]
[1727358757071,21.61689,2620.0,2619.6,0.01]
[1727358757390,21.61689,2620.0,2619.6,4.29015]
[1727358757391,14.8,2620.0,2619.6,4.29015]
[1727358757608,14.8,2620.0,2619.7,4.628409]
[1727358757884,14.8,2620.0,2619.8,0.4628]
[1727358758050,14.8,2620.0,2619.8,4.2798]
[1727358758248,14.8,2620.0,2619.9,0.05795723]
[1727358758473,14.8,2620.0,2619.9,4.33768723]
[1727358758679,14.8,2620.0,2619.9,9.35695269]
[1727358759047,14.8,2620.0,2619.9,9.90695269]
[1727358759387,14.8,2620.0,2619.9,6.08531929]
[1727358760379,14.8,2620.0,2619.9,5.53531929]
[1727358760554,14.8,2620.0,2619.9,1.71838929]
[1727358760758,14.8,2620.0,2619.9,4.33768723]
[1727358762462,14.8,2620.0,2619.9,0.52075723]
[1727358762663,14.8,2620.0,2619.9,4.33768723]
[1727358764375,14.8,2620.0,2619.9,4.88768723]
[1727358765694,14.8,2620.0,2619.9,7.96401288]
[1727358765992,14.8,2620.0,2619.9,9.44794786]
[1727358768387,14.8,2620.0,2619.9,6.44794786]
[1727358768589,14.8,2620.0,2619.9,5.89794786]
[1727358772908,14.8,2620.0,2619.9,6.44794786]
[1727358777405,14.8,2620.0,2619.9,5.89794786]
[1727358777598,14.8,2620.0,2619.9,4.33768723]
[1727358778178,14.8,2620.0,2619.9,3.87488723]
[1727358779897,14.8,2620.0,2619.9,4.42488723]
[1727358780414,14.8,2620.0,2619.9,7.88768723]
[1727358780625,14.8,2620.0,2619.9,7.33768723]
[1727358780922,14.8,2620.0,2619.9,8.83531529]
[1727358783483,14.8,2620.0,2619.9,6.87488723]
[1727358784581,14.8,2620.0,2619.9,3.87488723]
[1727358788342,14.8,2620.0,2619.9,0.05795723]
[1727358788490,15.6247,2620.0,2619.6,3.82726]
[1727358789015,15.6247,2620.0,2619.8,3.81707]
[1727358789323,14.8,2620.0,2619.9,3.87198159]
[1727358790031,14.8,2620.0,2619.9,8.46252015]
[1727358790532,14.8,2620.0,2619.9,4.64088675]
[1727358790733,14.8,2620.0,2619.9,5.19088675]
[1727358790896,14.8,2620.0,2619.9,8.19088675]
[1727358792324,14.8,2620.0,2619.9,7.64088675]
[1727358792526,14.8,2620.0,2619.9,11.46252015]
[1727358794240,14.8,2620.0,2619.9,3.87198159]
[1727358794241,15.6002,2620.0,2619.9,3.87198159]
[1727358794545,14.8,2620.0,2619.9,3.87198159]
[1727358795040,14.8,2620.0,2619.9,0.05505159]
[1727358796363,14.8,2620.0,2619.9,3.87198159]
[1727358796711,14.8,2620.0,2619.9,5.10367975]
[1727358796944,14.8,2620.0,2619.9,9.47531315]
[1727358797254,14.8,2620.0,2619.9,12.47531315]
[1727358798820,14.8,2620.0,2619.9,12.83727822]
[1727358799040,5.8001,2620.0,2619.9,12.47531315]
[1727358799212,5.8001,2620.0,2619.9,12.83725205]
[1727358799411,5.8001,2620.0,2619.9,13.4163543]
[1727358799611,2.76326776,2621.2,2621.1,3.81519]
[1727358800050,3.81453,2621.6,2621.2,3.81503]
[1727358800051,2.76343033,2621.3,2621.2,3.81503]
[1727358800348,2.76343033,2621.3,2621.2,7.69028247]
[1727358800554,3.26430208,2621.6,2621.2,7.69028247]
[1727358800555,2.76343033,2621.5,2621.4,3.81475]
[1727358800758,2.76343033,2621.6,2621.5,3.8146]
[1727358801109,2.76343033,2621.6,2621.5,3.86765585]
[1727358801309,2.76343033,2621.6,2621.5,4.41765585]
[1727358802545,2.76343033,2621.6,2621.5,3.86765585]
[1727358803259,3.95861824,2622.1,2621.6,3.81432]
[1727358803461,3.2625694,2621.8,2621.6,3.81432]
[1727358803624,3.2625694,2621.9,2621.7,0.05244953]
[1727358804260,4.0530694,2621.8,2621.4,3.81474]
[1727358804459,1.95860794,2621.8,2621.3,3.81481]
[1727358804757,2.76138824,2621.6,2621.3,3.81478]
[1727358804922,2.76138824,2621.6,2621.4,3.81472]
[1727358805318,2.76138824,2621.6,2621.3,3.81478]
[1727358805522,2.76138824,2621.6,2621.4,3.81472]
[1727358806367,4.05238986,2621.8,2621.3,3.81478]
[1727358806368,0.7905,2621.8,2621.3,3.81478]
[1727358806522,4.6047,2621.8,2621.3,3.81478]
[1727358806720,0.7905,2621.8,2621.1,7.34]
[1727358806953,3.81463,2621.5,2621.0,3.81523]
[1727358807163,0.381463,2621.4,2620.9,3.81542]
[1727358807359,0.7905,2621.8,2621.1,3.81517]
[1727358807672,3.81447,2621.6,2621.1,3.81509]
[1727358808671,3.81447,2621.6,2621.1,7.6302]
[1727358808827,3.81447,2621.6,2621.1,3.81509]
[1727358809053,0.381447,2621.5,2621.1,3.81509]
[1727358810463,3.81476,2621.4,2620.9,3.81539]
[1727358810790,4.196057,2621.5,2621.0,3.86644249]
[1727358811096,0.8010527,2621.4,2621.1,3.81517]
[1727358811262,0.8010527,2621.4,2621.0,3.86645249]
[1727358811462,0.8010527,2621.4,2621.2,0.05091792]
[1727358811670,0.8010527,2621.4,2621.1,0.0510252]
[1727358811864,0.8010527,2621.4,2621.0,3.81532]
[1727358811865,4.61695,2621.4,2621.3,0.05081065]
[1727358812066,0.8022,2621.4,2621.2,0.05091792]
[1727358812390,0.8022,2621.4,2621.3,0.05081065]
[1727358812618,0.8022,2621.4,2621.0,3.81532]
[1727358812757,0.8022,2621.4,2621.3,0.05081065]
[1727358812953,0.8022,2621.4,2621.1,3.81508]
[1727358813255,0.8022,2621.4,2621.3,0.05081065]
[1727358813788,0.8022,2621.4,2621.1,3.81508]
[1727358814091,0.8022,2621.4,2621.3,0.05081065]
[1727358814551,0.8022,2621.4,2620.9,3.81538]
[1727358814761,0.8022,2621.4,2621.3,0.05081065]
[1727358815059,1.263868,2621.4,2621.0,3.81532]
[1727358815260,1.263868,2621.4,2621.3,0.05081065]
[1727358815463,1.263868,2621.4,2621.0,3.81532]
[1727358815659,1.263868,2621.4,2621.3,0.05081065]
[1727358815848,1.263868,2621.4,2621.1,3.81517]
[1727358816052,4.61695,2621.4,2621.3,0.05081065]
[1727358816252,4.61695,2621.4,2621.2,0.05091792]
[1727358816479,4.61695,2621.4,2620.7,11.15565]
[1727358816480,3.81516,2621.2,2620.7,11.15565]
[1727358816689,0.763006,2621.1,2620.8,3.81561]
[1727358816889,3.8149,2621.3,2620.8,3.81561]
[1727358817090,3.8149,2621.3,2620.9,3.81546]
[1727358817477,3.81518,2621.2,2620.7,11.15565]
[1727358817683,3.81515,2621.2,2620.7,11.15565]
[1727358817885,3.81516,2621.2,2620.7,7.34]
[1727358818067,3.81577,2620.7,2620.2,3.81642]
[1727358818274,0.7563,2620.7,2620.3,3.81634]
[1727358818906,4.6675616,2620.7,2620.1,3.81656]
[1727358819070,5.13431776,2620.7,2620.1,3.81656]
[1727358819257,5.13431776,2620.7,2620.2,3.81647]
[1727358819466,4.6675616,2620.7,2620.2,3.81647]
[1727358819667,0.7563,2620.7,2620.4,3.8162]
[1727358819973,0.7563,2620.7,2620.2,7.6380234]
[1727358820204,0.7563,2620.7,2620.3,3.81634]
[1727358820519,0.7563,2620.7,2620.3,7.63261]
[1727358820668,0.7563,2620.7,2620.5,3.81606]
[1727358820863,0.7563,2620.7,2620.3,7.63253]
[1727358821256,0.7563,2620.7,2620.1,3.81653]
[1727358821696,3.81617,2620.5,2620.0,3.81666]
[1727358822004,3.81617,2620.5,2619.9,11.4553334]
[1727358822206,3.81617,2620.5,2620.0,3.81674]
[1727358822420,0.8159,2620.2,2619.7,7.34]
[1727358822561,4.63249,2620.2,2619.7,7.34]
[1727358822762,4.63249,2620.2,2619.7,11.15715]
[1727358823071,4.63249,2620.2,2619.7,7.34]
[1727358823404,0.8159,2620.2,2619.7,7.34]
[1727358823561,0.8159,2620.2,2619.8,3.81699]
[1727358823763,0.8159,2620.2,2619.8,7.6385734]
[1727358824259,0.8159,2620.2,2619.9,3.81691]
[1727358824496,0.8159,2620.2,2620.0,3.81679]
[1727358824798,0.779,2620.4,2620.0,3.8167]
[1727358825104,3.81586,2620.7,2619.7,7.8028]
[1727358825105,0.779,2620.7,2620.3,3.81625]
[1727358825607,0.779,2620.7,2620.5,3.81601]
[1727358825895,0.779,2620.7,2620.5,3.81597]
[1727358826071,0.779,2620.7,2620.6,0.04927408]
[1727358826795,0.779,2620.7,2620.4,3.81611]
[1727358827095,0.779,2620.7,2620.2,4.27919]
[1727358827096,0.779,2620.7,2620.6,0.04927408]
[1727358827707,4.59477,2620.7,2620.2,3.81638]
[1727358827907,0.779,2620.7,2620.6,0.04927408]
[1727358828078,0.779,2620.7,2620.2,7.63274]
[1727358828264,0.779,2620.7,2620.6,0.04927408]
[1727358828764,0.779,2620.7,2620.3,3.81633]
[1727358829266,0.779,2620.7,2620.4,3.86562875]
[1727358829462,0.8317,2620.9,2620.5,3.81603]
[1727358829780,0.8317,2620.9,2620.6,0.04927408]
[1727358830115,4.64718,2620.9,2620.6,0.04927408]
[1727358830402,3.81566,2620.8,2620.6,0.04927408]
[1727358830585,3.81566,2620.8,2620.3,3.81621]
[1727358830790,4.64718,2620.9,2620.7,0.04916676]
[1727358830962,8.46279,2620.9,2620.4,3.81619]
[1727358831164,4.64718,2620.9,2620.8,0.04905945]
[1727358831362,4.64718,2620.9,2620.4,3.81619]
[1727358831566,4.64718,2620.9,2620.8,0.04905945]
[1727358831801,4.64718,2620.9,2620.4,3.81609]
[1727358832016,4.64718,2620.9,2620.8,0.04905945]
[1727358832232,4.64718,2620.9,2620.4,7.6322]
[1727358832371,3.81563,2620.8,2620.4,3.81609]
[1727358833997,0.8317,2620.9,2620.5,3.81599]
[1727358833998,4.64718,2620.9,2620.5,3.81599]
[1727358834204,0.8317,2620.9,2620.4,3.81609]
[1727358834404,0.7616,2621.1,2620.7,3.81569]
[1727358835084,4.57682,2621.1,2620.7,3.81569]
[1727358835285,4.57682,2621.1,2620.7,3.81574]
[1727358836403,8.3921,2621.1,2620.6,3.81589]
[1727358837098,8.39213,2621.1,2620.6,3.8159]
[1727358837268,3.81537,2621.0,2620.6,3.8159]
[1727358838593,0.7648,2620.6,2620.2,3.81641]
[1727358838899,3.81569,2620.8,2620.1,0.4628]
[1727358838900,4.58049,2620.8,2620.4,3.81619]
[1727358839303,8.39619,2620.8,2620.1,0.4628]
[1727358839504,0.7648,2620.8,2620.4,3.81611]
[1727358839675,0.7648,2620.8,2620.2,3.8216334]
[1727358840004,4.62854,2621.0,2620.6,3.81589]
[1727358840217,4.62854,2621.0,2620.6,7.63174]
[1727358840218,0.8132,2621.0,2620.6,7.63174]
[1727358840514,0.8132,2621.0,2620.6,3.81583]
[1727358840804,4.6248,2621.3,2620.9,3.81548]
[1727358840980,4.6248,2621.3,2620.7,3.86472257]
[1727358840981,3.81506,2621.2,2620.7,3.86472257]
[1727358841164,3.81506,2621.2,2621.0,0.04875066]
[1727358841370,0.8099,2621.3,2620.7,3.81565]
[1727358841572,3.81508,2621.2,2620.7,7.63136]
[1727358841770,3.81508,2621.2,2620.8,0.04896526]
[1727358842007,4.6248,2621.3,2620.7,3.81567]
[1727358842214,8.43982,2621.3,2620.9,0.04885795]
[1727358842376,4.6248,2621.3,2620.8,0.04896526]
[1727358842576,0.8099,2621.3,2620.9,7.63088]
[1727358842849,0.8099,2621.3,2620.9,3.86425795]
[1727358843201,0.8099,2621.3,2621.0,3.81533]
[1727358843417,0.8099,2621.3,2621.0,3.86385462]
[1727358843769,4.62481,2621.3,2621.0,0.04852462]
[1727358844108,3.81507,2621.2,2620.7,3.81568]
[1727358844408,8.43983,2621.3,2620.7,3.81568]
[1727358844708,0.8099,2621.3,2620.8,0.04873923]
[1727358845006,4.6249,2621.3,2620.8,3.8155]
[1727358845168,4.6249,2621.3,2620.9,0.04863192]
[1727358845570,3.81527,2621.1,2620.9,0.04863192]
[1727358845803,3.81527,2621.1,2620.6,3.8159]
[1727358846010,3.81527,2621.1,2621.0,0.04852462]
[1727358846319,3.81527,2621.1,2620.6,3.8159]
[1727358846642,3.81527,2621.1,2620.5,0.4628]
[1727358846643,3.81536,2621.0,2620.5,0.4628]
[1727358846809,3.81536,2621.0,2620.7,0.04884654]
[1727358846810,4.64066,2620.9,2620.7,0.04884654]
[1727358847139,0.8251,2620.9,2620.4,11.15613]
[1727358847299,0.8151,2621.1,2620.8,0.04873923]
[1727358847503,0.8151,2621.1,2620.6,3.81583]
[1727358847703,0.8151,2621.1,2620.9,0.04863192]
[1727358848014,0.8151,2621.1,2621.0,0.04852462]
[1727358848198,0.8151,2621.1,2620.6,3.81583]
[1727358848397,0.8151,2621.1,2621.0,0.04852462]
[1727358848598,0.8151,2621.1,2620.6,3.81583]
[1727358848818,0.8151,2621.1,2621.0,0.04852462]
[1727358849043,0.8151,2621.1,2620.8,3.81548]
[1727358849248,3.81498,2621.3,2621.0,0.04852462]
[1727358849426,3.81498,2621.3,2620.8,3.81554]
[1727358849427,3.81498,2621.3,2620.9,0.04863192]
[1727358849625,0.7663,2621.4,2620.8,0.4628]
[1727358849824,0.7663,2621.4,2621.0,3.86378462]
[1727358850139,0.7663,2621.4,2621.0,3.81526]
[1727358850437,0.7663,2621.4,2621.1,0.04841733]
[1727358851029,0.7663,2621.4,2620.9,7.63092]
[1727358851345,3.8149,2621.3,2621.2,0.04824884]
[1727358851636,0.7663,2621.4,2621.2,0.04824884]
[1727358851848,0.7663,2621.4,2621.0,3.81532]
[1727358852138,0.7663,2621.4,2621.3,0.04814157]
[1727358852308,0.7663,2621.4,2621.0,3.81532]
[1727358852518,0.7663,2621.4,2621.3,0.04814157]
[1727358852717,0.7663,2621.4,2621.0,3.81532]
[1727358852925,0.7663,2621.4,2621.3,0.04814157]
[1727358853235,4.58105,2621.4,2621.3,0.04814157]
[1727358853436,5.420616,2621.4,2620.9,3.8154]
[1727358853638,5.420616,2621.4,2621.3,0.04814157]
[1727358853810,5.420616,2621.4,2620.8,3.81555]
[1727358854017,3.81499,2621.3,2620.8,3.81555]
[1727358854409,3.81504,2621.2,2620.8,3.81555]
[1727358854740,3.8149,2621.3,2620.8,7.63108]
[1727358854902,3.8149,2621.3,2620.8,3.81553]
[1727358855241,3.8149,2621.3,2620.7,3.81569]
[1727358855540,3.81504,2621.2,2620.7,3.81569]
[1727358855743,0.9235806,2621.2,2620.6,3.81581]
[1727358856036,3.81501,2621.3,2620.8,3.81561]
[1727358856203,4.58109,2621.4,2620.8,3.81561]
[1727358856398,4.58109,2621.4,2620.9,3.86393713]
[1727358856649,0.7663,2621.4,2621.1,3.81517]
[1727358857005,0.7663,2621.4,2621.2,0.04814526]
[1727358858237,3.81464,2621.5,2621.2,0.04814526]
[1727358858451,3.81477,2621.4,2621.2,0.04814526]
[1727358858629,4.74287826,2621.3,2620.8,3.81556]
[1727358858831,3.81521,2621.1,2620.6,0.4628]
[1727358859146,3.81535,2621.0,2620.5,3.81606]
[1727358859444,3.81535,2621.0,2620.6,3.8159]
[1727358859649,3.81557,2620.9,2620.4,4.27891]
[1727358859807,4.197127,2620.9,2620.3,3.81634]
[1727358860415,4.197127,2620.9,2620.4,3.81618]
[1727358860620,3.81557,2620.9,2620.4,3.81618]
[1727358860906,4.64802,2621.0,2620.2,3.0]
[1727358861112,4.64802,2621.0,2620.6,3.8159]
[1727358861338,4.64802,2621.0,2620.5,3.81592]
[1727358861656,4.64802,2621.0,2620.5,7.63187]
[1727358861809,4.64802,2621.0,2620.6,3.81591]
[1727358862212,0.8326,2621.0,2620.7,3.81577]
[1727358862644,4.57963,2621.3,2620.8,3.81561]
[1727358862817,3.81505,2621.2,2620.8,3.81561]
[1727358863214,3.81505,2621.2,2620.7,3.81574]
[1727358863409,3.81505,2621.2,2620.6,3.81582]
[1727358863614,3.81521,2621.1,2620.6,3.81582]
[1727358863809,3.81521,2621.1,2620.6,7.63163]
[1727358864120,0.7647,2621.3,2620.7,3.81566]
[1727358864321,3.81507,2621.2,2620.7,3.81566]
[1727358864540,3.81507,2621.2,2620.8,3.81562]
[1727358864752,4.57965,2621.3,2620.8,3.81555]
[1727358865947,3.81505,2621.2,2620.8,3.81562]
[1727358867247,3.81505,2621.2,2620.7,3.81576]
[1727358867459,4.5796,2621.3,2620.9,3.81547]
[1727358867628,0.7647,2621.3,2620.9,3.81547]
[1727358867953,0.7647,2621.3,2620.9,3.81541]
[1727358868747,3.81454,2621.6,2621.1,3.81512]
[1727358868748,0.8195,2621.5,2621.1,3.81512]
[1727358869358,4.63413,2621.5,2621.1,3.81512]
[1727358869510,0.8195,2621.5,2621.1,3.81512]
[1727358870111,0.8195,2621.5,2621.1,7.63021]
[1727358870413,0.8195,2621.5,2621.1,3.81509]
[1727358870607,4.6298,2621.7,2621.2,3.81501]
[1727358870812,4.6298,2621.7,2621.2,3.86318822]
[1727358871047,8.44421,2621.7,2621.2,3.86318822]
[1727358871227,0.8154,2621.7,2621.3,3.81487]
[1727358871439,4.62972,2621.7,2621.3,3.86294095]
[1727358871659,0.8154,2621.7,2621.3,3.86294095]
[1727358872533,0.8154,2621.7,2621.4,3.81475]
[1727358873060,8.39725,2622.0,2621.5,3.86235707]
[1727358873229,3.8141,2621.9,2621.5,0.04782707]